bitfinex/quotes_ETHUSD_20241124
["timestamp","ask_amount","ask_price","bid_price","bid_amount"]
[1732488137911,2.98736,3347.5,3346.9,1.19513]
[1732488138116,5.97431,3347.7,3346.9,1.57434784]
[1732488138457,2.98713,3347.7,3347.0,1.19509]
[1732488138658,2.98721,3347.6,3347.0,1.19509]
[1732488139011,2.98721,3347.6,3347.1,0.05695585]
[1732488139446,2.98721,3347.6,3347.0,1.19509]
[1732488139622,2.98721,3347.6,3347.2,0.05695585]
[1732488139825,2.98733,3347.5,3346.8,1.19515]
[1732488140033,2.98733,3347.5,3346.7,1.96859]
[1732488140223,0.8126,3348.1,3347.3,0.05695585]
[1732488140550,2.98739,3347.4,3346.8,1.19514]
[1732488140932,2.98739,3347.4,3346.9,0.05695585]
[1732488142361,2.98718,3347.7,3346.9,0.05695585]
[1732488142671,2.98682,3348.1,3347.3,1.19495]
[1732488142956,3.7891,3348.4,3347.0,0.7919]
[1732488142957,3.0,3348.2,3347.4,0.7919]
[1732488143155,2.98634,3348.6,3347.9,1.19475]
[1732488143320,2.98639,3348.6,3348.0,0.8085]
[1732488143632,2.98648,3348.5,3348.0,0.86505235]
[1732488144466,2.98648,3348.5,3348.0,0.8085]
[1732488144869,2.98651,3348.4,3348.1,0.05655235]
[1732488145531,2.98662,3348.3,3348.1,0.05655235]
[1732488145731,2.98667,3348.2,3348.1,0.05655235]
[1732488146049,2.98708,3347.8,3347.1,1.97615]
[1732488146352,3.78662,3348.3,3347.1,1.97615]
[1732488146353,2.98698,3347.9,3347.2,1.97609]
[1732488146562,2.98704,3347.8,3347.2,2.293204]
[1732488147332,2.98718,3347.7,3347.2,0.7811]
[1732488147536,2.98704,3347.8,3347.2,0.7811]
[1732488147537,2.98725,3347.6,3347.2,0.7811]
[1732488148760,2.9873,3347.5,3347.2,0.7811]
[1732488149634,2.9874,3347.4,3347.2,0.7811]
[1732488150851,2.9874,3347.4,3346.7,0.7762]
[1732488150852,2.98765,3347.2,3346.7,0.7762]
[1732488151250,2.98765,3347.2,3346.7,1.092873]
[1732488151457,2.98769,3347.1,3346.7,1.092873]
[1732488151780,2.98775,3347.0,3346.7,1.092873]
[1732488151941,2.98775,3347.0,3346.7,0.7762]
[1732488152272,2.98765,3347.2,3346.7,0.7762]
[1732488152675,0.7914,3347.6,3346.7,0.7762]
[1732488153184,2.98781,3347.0,3346.7,0.7762]
[1732488153474,2.98792,3346.8,3346.7,0.7762]
[1732488153688,2.9882,3346.5,3346.1,0.8196]
[1732488153839,2.98748,3347.3,3346.7,0.05246397]
[1732488154036,0.7658,3347.5,3346.1,0.8196]
[1732488154037,2.98782,3347.0,3346.1,0.8196]
[1732488154241,2.98838,3346.3,3346.1,0.8196]
[1732488154438,2.98838,3346.3,3346.2,0.05246397]
[1732488154851,2.98838,3346.3,3346.1,0.8196]
[1732488155142,2.98867,3346.0,3345.6,0.8196]
[1732488155377,0.7658,3346.8,3346.2,0.05246397]
[1732488155378,2.98837,3346.3,3346.2,0.05246397]
[1732488155585,2.98837,3346.3,3345.6,0.8196]
[1732488155586,2.98891,3345.7,3345.6,0.8196]
[1732488156374,2.98891,3345.7,3345.1,0.8104]
[1732488156573,2.98891,3345.7,3345.1,1.11987298]
[1732488156780,2.98891,3345.7,3345.2,0.05246397]
[1732488158037,2.98901,3345.6,3345.2,0.05246397]
[1732488159289,2.98918,3345.4,3345.2,0.05246397]
[1732488159463,2.98918,3345.4,3344.7,2.01081]
[1732488159658,5.97844,3345.4,3345.3,0.05246397]
[1732488159872,2.98918,3345.4,3345.3,0.05246397]
[1732488160097,2.9893,3345.3,3344.7,0.8149]
[1732488160295,2.98924,3345.4,3344.8,0.201084]
[1732488160448,2.98924,3345.4,3345.3,0.05246397]
[1732488160653,2.98924,3345.4,3344.7,2.01079]
[1732488160989,2.98924,3345.4,3344.8,0.320677]
[1732488161192,2.98924,3345.4,3344.8,0.37314097]
[1732488161393,2.98908,3345.5,3344.8,0.37314097]
[1732488161594,2.98926,3345.4,3344.8,0.37314097]
[1732488161795,2.98901,3345.6,3344.9,0.2383931]
[1732488162094,2.98928,3345.3,3344.9,0.2383931]
[1732488162299,2.98864,3346.0,3345.0,0.05246397]
[1732488162451,2.9891,3345.5,3345.0,0.05246397]
[1732488163076,2.98919,3345.4,3345.0,0.05246397]
[1732488163279,3.0,3346.1,3345.1,0.7947]
[1732488163502,0.8314,3346.5,3345.1,0.7947]
[1732488163503,2.98902,3345.6,3345.1,0.7947]
[1732488163708,2.98902,3345.6,3345.2,0.05327557]
[1732488164151,5.98846,3346.2,3345.3,0.7947]
[1732488164152,2.98865,3346.0,3345.3,0.7947]
[1732488164352,2.98865,3346.0,3345.2,1.24900557]
[1732488164353,2.98831,3346.4,3345.6,0.7947]
[1732488164581,2.98799,3346.8,3345.9,0.7947]
[1732488164758,2.98803,3346.7,3346.1,1.19541]
[1732488165166,2.98803,3346.7,3346.0,0.7947]
[1732488165365,2.98805,3346.7,3346.2,0.05327557]
[1732488165561,0.8314,3347.2,3346.0,2.19449956]
[1732488165562,2.98794,3346.8,3346.1,0.05385838]
[1732488165776,2.98794,3346.8,3346.1,0.21944996]
[1732488165991,2.98803,3346.7,3346.2,0.05385838]
[1732488166405,2.98788,3346.9,3346.2,0.28020421]
[1732488166606,2.98771,3347.1,3346.3,1.99003]
[1732488166811,2.98776,3347.0,3346.4,0.34955255]
[1732488167010,2.98776,3347.0,3346.4,1.59862124]
[1732488167498,2.98776,3347.0,3346.4,1.59863124]
[1732488167859,2.98759,3347.2,3346.5,1.43460312]
[1732488168292,2.98759,3347.2,3346.6,0.05376869]
[1732488168493,2.98773,3347.1,3346.6,0.05376869]
[1732488169265,2.98773,3347.1,3346.6,0.25814256]
[1732488171825,0.8314,3347.5,3346.6,0.05376869]
[1732488172111,0.8314,3347.5,3346.3,0.7947]
[1732488172112,2.98763,3347.2,3346.5,1.19527]
[1732488172311,2.98763,3347.2,3346.7,0.05376869]
[1732488172522,2.98763,3347.2,3346.5,1.513805]
[1732488172702,2.98763,3347.2,3346.8,0.05376869]
[1732488172900,2.98763,3347.2,3346.5,1.513805]
[1732488173095,2.98763,3347.2,3346.9,0.05376869]
[1732488173310,2.98763,3347.2,3346.5,1.513805]
[1732488173624,2.98763,3347.2,3347.0,0.05376869]
[1732488173826,2.98789,3346.9,3346.3,0.7947]
[1732488174030,2.98766,3347.1,3346.3,1.11325]
[1732488174231,3.81874,3347.5,3346.3,0.7947]
[1732488175194,0.8285,3347.4,3345.9,0.7784]
[1732488175492,2.9881,3346.6,3345.9,0.7784]
[1732488175718,2.98833,3346.4,3345.9,0.7784]
[1732488175929,2.98877,3345.9,3345.5,0.7784]
[1732488179904,2.98877,3345.9,3345.5,0.6784]
[1732488182620,2.98856,3346.1,3345.5,0.6784]
[1732488183334,2.98856,3346.1,3345.5,1.87403]
[1732488184333,2.98856,3346.1,3345.5,2.181003]
[1732488185446,2.98856,3346.1,3345.7,0.75]
[1732488186018,2.9884,3346.3,3345.8,0.05142369]
[1732488186720,0.8285,3346.8,3345.8,0.05142369]
[1732488187055,2.98862,3346.1,3345.8,0.05142369]
[1732488190966,2.98865,3346.0,3345.8,0.05142369]
[1732488191364,2.98873,3345.9,3345.8,0.05142369]
[1732488191660,2.98933,3345.3,3345.0,0.8087]
[1732488192017,2.98933,3345.3,3345.1,0.05031116]
[1732488195629,2.98933,3345.3,3344.7,1.99962]
[1732488195835,2.98933,3345.3,3345.2,0.04924649]
[1732488196049,2.98936,3345.2,3344.7,0.8037]
[1732488198074,2.98922,3345.4,3344.7,0.8037]
[1732488200375,2.98927,3345.3,3344.8,0.04924201]
[1732488200678,2.98927,3345.3,3344.7,0.8037]
[1732488200838,2.98937,3345.2,3344.9,0.04924201]
[1732488201043,2.98937,3345.2,3344.7,0.8037]
[1732488201256,2.98937,3345.2,3345.0,0.04924201]
[1732488201575,2.98937,3345.2,3345.1,0.04924201]
[1732488201733,2.98937,3345.2,3344.7,1.123267]
[1732488201935,2.98937,3345.2,3344.8,0.04924201]
[1732488202173,2.98937,3345.2,3344.7,1.123267]
[1732488202379,2.98937,3345.2,3344.8,0.04924201]
[1732488202551,2.98937,3345.2,3344.7,0.8037]
[1732488202751,2.98937,3345.2,3344.8,0.04925992]
[1732488202954,2.98937,3345.2,3344.7,0.8037]
[1732488203137,2.98937,3345.2,3344.8,0.04925992]
[1732488203476,2.98937,3345.2,3344.7,0.8037]
[1732488204000,2.98937,3345.2,3344.8,0.04925992]
[1732488204350,2.98937,3345.2,3344.7,0.8037]
[1732488204579,2.98937,3345.2,3344.9,0.04925992]
[1732488204763,2.98937,3345.2,3344.7,0.8037]
[1732488204963,2.98937,3345.2,3345.0,0.04925992]
[1732488205290,2.98937,3345.2,3344.7,0.8037]
[1732488205452,2.98937,3345.2,3345.1,0.04925992]
[1732488205652,2.98937,3345.2,3344.7,0.8037]
[1732488206154,2.98937,3345.2,3344.8,0.04925992]
[1732488206356,2.98937,3345.2,3344.7,0.8037]
[1732488206667,2.98937,3345.2,3344.8,0.04925992]
[1732488207061,2.98937,3345.2,3344.7,0.8037]
[1732488207267,2.98937,3345.2,3344.9,0.04925992]
[1732488207598,2.98937,3345.2,3345.0,0.04925992]
[1732488207899,2.98937,3345.2,3344.7,0.8037]
[1732488208698,2.98944,3345.1,3344.8,0.04930022]
[1732488208911,3.0,3344.7,3343.1,0.95184736]
[1732488209063,2.99088,3343.5,3343.1,0.05447736]
[1732488209499,2.99097,3343.4,3343.1,0.05447736]
[1732488211904,2.99078,3343.6,3343.1,0.05447736]
[1732488212118,2.99099,3343.4,3343.1,0.05447736]
[1732488212311,2.99078,3343.6,3343.1,0.05447736]
[1732488213071,2.99092,3343.5,3343.1,0.05447736]
[1732488213613,2.99098,3343.4,3343.1,0.05447736]
[1732488213809,2.99078,3343.6,3343.1,0.05447736]
[1732488214105,2.99078,3343.6,3343.2,0.04115504]
[1732488220926,2.99102,3343.4,3343.2,0.04115504]
[1732488221602,2.99078,3343.6,3343.2,0.04115504]
[1732488221803,3.75492,3343.8,3343.2,0.04115504]
[1732488222004,3.75492,3343.8,3343.1,0.95184736]
[1732488222386,3.75492,3343.8,3343.2,0.04115504]
[1732488224410,0.7643,3343.8,3343.2,0.04115504]
[1732488224748,2.99102,3343.4,3343.2,0.04115504]
[1732488224950,2.99102,3343.4,3343.1,0.05447736]
[1732488226211,2.99113,3343.3,3343.1,0.05447736]
[1732488226511,2.99102,3343.4,3343.1,0.05447736]
[1732488226707,2.99114,3343.2,3343.1,0.05447736]
[1732488227532,2.99102,3343.4,3343.1,0.05447736]
[1732488228111,2.99105,3343.3,3343.1,0.05447736]
[1732488228871,2.99105,3343.3,3342.6,1.71608]
[1732488229056,2.99105,3343.3,3342.7,0.89746]
[1732488230572,2.99105,3343.3,3342.8,0.04268548]
[1732488230750,2.99117,3343.2,3342.6,1.71608]
[1732488230941,2.99117,3343.2,3342.9,0.04268548]
[1732488231144,2.99105,3343.3,3342.6,1.71608]
[1732488231344,2.99105,3343.3,3343.0,0.04270787]
[1732488231667,2.99105,3343.3,3342.6,1.71608]
[1732488232170,2.99105,3343.3,3342.7,0.04270787]
[1732488233970,2.99105,3343.3,3342.7,0.94017787]
[1732488234177,2.99105,3343.3,3342.7,1.20580866]
[1732488234323,2.99089,3343.5,3342.8,0.89744]
[1732488234526,2.99089,3343.5,3342.8,0.94077931]
[1732488235166,2.99072,3343.7,3342.8,0.94077931]
[1732488235167,2.99097,3343.4,3342.8,0.94077931]
[1732488239169,2.9903,3344.2,3343.0,1.70389]
[1732488239474,0.72642414,3344.1,3343.5,0.89726]
[1732488239628,0.2793939,3344.0,3343.5,0.89726]
[1732488239828,2.9903,3344.2,3343.5,0.89726]
[1732488240078,0.27938445,3344.1,3343.6,0.04313777]
[1732488240226,0.27938445,3344.0,3343.6,0.04313777]
[1732488240436,2.9903,3344.2,3343.6,0.04313777]
[1732488240635,3.26972875,3344.1,3343.7,0.8015]
[1732488240956,0.27938875,3344.0,3343.7,0.8015]
[1732488241161,0.8244,3344.3,3343.4,1.69878]
[1732488241457,3.26972177,3344.2,3343.8,0.04313777]
[1732488241668,3.26972177,3344.2,3343.4,1.69878]
[1732488241669,0.27940177,3344.1,3343.4,1.69878]
[1732488241839,0.27940177,3344.0,3343.4,0.8015]
[1732488242045,2.99032,3344.2,3343.5,0.89726]
[1732488242242,0.27938158,3344.1,3343.5,0.94025897]
[1732488242442,2.99032,3344.2,3343.5,0.94025897]
[1732488242670,0.27935921,3344.1,3343.5,0.94025897]
[1732488242929,0.8244,3344.3,3343.5,0.04299897]
[1732488243132,2.99103,3343.4,3342.7,1.69117]
[1732488243370,2.99087,3343.5,3342.8,0.0429721]
[1732488243542,2.99087,3343.5,3342.7,1.69117]
[1732488243742,0.27937323,3343.4,3342.8,0.0429721]
[1732488243986,2.99087,3343.5,3342.7,1.69117]
[1732488244288,2.99087,3343.5,3342.9,0.0429721]
[1732488244493,2.99087,3343.5,3342.7,1.69117]
[1732488244772,2.99087,3343.5,3342.8,0.0429721]
[1732488244934,2.99111,3343.3,3342.7,1.69117]
[1732488247035,2.99132,3343.0,3342.7,0.7937]
[1732488247263,2.99132,3343.0,3342.4,0.7623]
[1732488247573,2.99132,3343.0,3342.4,1.915575]
[1732488247777,2.99115,3343.2,3342.5,0.94038014]
[1732488247980,2.99134,3343.0,3342.5,0.04286014]
[1732488249484,2.99115,3343.2,3342.5,0.94038014]
[1732488250382,2.99115,3343.2,3342.5,1.20040115]
[1732488250584,2.99096,3343.4,3342.6,0.89749]
[1732488250788,2.99096,3343.4,3342.8,0.8314]
[1732488250984,2.99096,3343.4,3342.9,0.04286014]
[1732488251343,2.99096,3343.4,3342.8,1.72884]
[1732488251544,2.99096,3343.4,3342.9,0.04286014]
[1732488254093,0.7985,3343.5,3343.0,0.89739]
[1732488254254,0.27949087,3343.4,3343.0,0.89739]
[1732488254441,0.7985,3343.5,3343.0,0.89739]
[1732488254642,0.27948662,3343.4,3343.1,0.04286014]
[1732488254890,0.27948662,3343.3,3343.1,0.04286014]
[1732488255049,0.7985,3343.5,3343.1,0.04286014]
[1732488255384,0.27946979,3343.4,3343.1,0.04286014]
[1732488255556,0.7985,3343.5,3343.1,0.04286014]
[1732488255768,0.27948724,3343.4,3343.1,0.04286014]
[1732488255960,0.7985,3343.5,3343.1,0.04286014]
[1732488256161,0.27948702,3343.4,3343.1,0.04286014]
[1732488256351,0.27948702,3343.3,3343.1,0.04286014]
[1732488256552,3.78938,3343.5,3343.1,0.04286014]
[1732488256779,0.27949586,3343.4,3343.1,0.04286014]
[1732488256981,0.279493,3343.3,3342.8,2.62627]
[1732488257190,3.78938,3343.5,3342.9,0.04143147]
[1732488257463,0.27948614,3343.4,3342.9,0.04143147]
[1732488257792,3.78938,3343.5,3342.9,0.04143147]
[1732488257994,3.78938,3343.5,3342.9,0.93885147]
[1732488258856,3.73490264,3343.5,3342.9,1.23188232]
[1732488261019,3.73490264,3343.5,3342.9,0.93885147]
[1732488261220,3.73490264,3343.5,3342.9,0.04143147]
[1732488261421,2.99088,3343.5,3342.9,0.04143147]
[1732488261620,2.99088,3343.5,3342.9,0.93884147]
[1732488263431,2.99088,3343.5,3342.9,0.89741]
[1732488263965,0.7755,3343.4,3342.2,0.02991222]
[1732488264123,0.90031897,3343.8,3342.2,0.89759]
[1732488264124,2.99152,3342.8,3342.2,0.89759]
[1732488264428,2.9916,3342.7,3342.3,0.04004145]
[1732488264606,2.9916,3342.7,3342.1,0.8123]
[1732488264812,2.9916,3342.7,3342.2,0.04004145]
[1732488269936,0.7755,3342.8,3342.2,0.93764145]
[1732488270241,3.76701,3342.8,3342.2,0.93764145]
[1732488270604,3.76701,3342.8,3342.2,0.04004145]
[1732488270999,2.99194,3342.4,3342.2,0.04004145]
[1732488271313,2.99195,3342.3,3341.8,0.7997]
[1732488272940,2.99206,3342.2,3341.8,0.7997]
[1732488273115,2.99195,3342.3,3341.8,0.7997]
[1732488274349,2.99175,3342.6,3341.8,1.69741]
[1732488274532,2.99191,3342.4,3341.8,0.7997]
[1732488274733,2.98044,3342.2,3342.0,0.02313446]
[1732488275331,2.99213,3342.1,3342.0,0.02313446]
[1732488275550,3.78323,3342.1,3342.0,0.02313446]
[1732488292454,0.7911,3342.1,3342.0,0.02313446]
[1732488292653,0.7911,3342.1,3342.0,0.05833555]
[1732488292889,0.7911,3342.1,3342.0,0.02313446]
[1732488293394,2.98044,3342.2,3342.0,0.05833555]
[1732488293693,2.98044,3342.2,3342.0,0.02313446]
[1732488294398,0.27892892,3342.1,3342.0,0.02313446]
[1732488294566,0.27892892,3342.1,3342.0,0.05833555]
[1732488294954,0.27892892,3342.1,3342.0,0.95599555]
[1732488295302,0.90031897,3343.2,3342.3,0.7591]
[1732488295453,0.27894534,3343.1,3342.6,0.7591]
[1732488295652,0.27894534,3343.0,3342.7,0.03525936]
[1732488295952,0.27894034,3342.9,3342.7,0.03525936]
[1732488296147,0.90031897,3343.2,3342.7,0.03525936]
[1732488296388,3.27017238,3343.1,3342.7,0.03525936]
[1732488296593,0.27894238,3343.0,3342.7,0.03525936]
[1732488296767,2.99123,3343.1,3342.7,0.03525936]
[1732488296961,3.0,3343.0,3342.7,0.03525936]
[1732488297357,3.0,3343.1,3342.6,0.7591]
[1732488297551,3.0,3343.1,3342.7,0.03525936]
[1732488300706,2.99087,3343.6,3342.8,0.7784]
[1732488300886,3.26993863,3343.5,3342.9,0.8974]
[1732488301086,0.90031897,3343.7,3343.0,0.89739]
[1732488301087,0.27904863,3343.4,3343.0,0.89739]
[1732488301285,0.27904863,3343.3,3343.0,0.93186067]
[1732488301554,0.27904863,3343.5,3343.0,0.93186067]
[1732488301689,0.27906425,3343.4,3343.0,0.03447067]
[1732488302015,2.9909,3343.5,3343.0,0.03447067]
[1732488302216,0.27898033,3343.4,3343.0,0.89739]
[1732488302385,3.0,3343.5,3343.1,0.03447067]
[1732488302713,3.0,3343.5,3343.0,0.89739]
[1732488303178,3.0,3343.5,3343.1,0.03447067]
[1732488303529,3.0,3343.5,3343.0,0.89739]
[1732488303876,3.90031897,3343.7,3343.1,0.93183067]
[1732488304114,0.90031897,3343.7,3343.2,0.89734]
[1732488304794,3.0,3343.6,3343.3,0.03447067]
[1732488304996,3.0,3343.6,3343.0,0.89739]
[1732488305689,3.90031897,3343.8,3343.2,0.89734]
[1732488306317,2.9907,3343.7,3343.1,0.89736]
[1732488306523,3.0,3343.6,3343.1,0.89736]
[1732488306719,3.0,3343.6,3343.2,0.03447067]
[1732488307239,3.90031897,3343.8,3343.2,0.03447067]
[1732488307537,3.0,3343.6,3343.2,0.03447067]
[1732488312726,0.90031897,3343.7,3343.2,0.03447067]
[1732488313533,3.0,3343.6,3343.2,0.03447067]
[1732488315733,3.0,3343.6,3343.3,0.8319]
[1732488315919,2.99036,3344.1,3343.4,0.8319]
[1732488316125,2.98988,3344.7,3343.9,0.89715]
[1732488316126,2.99004,3344.5,3343.9,0.89715]
[1732488316345,0.90031897,3344.4,3344.0,0.262623]
[1732488316504,0.90031897,3344.4,3344.0,0.03394659]
[1732488316943,0.90031897,3344.4,3343.9,0.89715]
[1732488317302,3.90031897,3344.4,3343.9,0.89715]
[1732488318942,3.90031897,3344.4,3344.0,0.02313446]
[1732488320003,3.0,3344.4,3344.0,0.02313446]
[1732488320836,2.98983,3344.7,3344.1,0.7753]
[1732488320837,0.90031897,3344.6,3344.1,0.7753]
[1732488321035,2.98983,3344.7,3344.2,0.03346299]
[1732488321241,0.90031897,3344.8,3344.2,0.03346299]
[1732488321441,0.90031897,3344.8,3344.3,0.89703]
[1732488321951,0.90031897,3344.8,3344.4,0.03346299]
[1732488322114,3.90031897,3344.8,3344.4,0.03346299]
[1732488322556,2.98948,3345.1,3344.5,0.7753]
[1732488322739,2.98905,3345.6,3344.8,0.89691]
[1732488323049,0.27830656,3345.5,3344.9,0.89688]
[1732488323257,0.27830656,3345.5,3344.9,0.93015944]
[1732488323458,0.27830656,3345.5,3345.0,0.8032]
[1732488323626,0.27830656,3345.5,3345.0,1.70005]
[1732488323828,3.26740656,3345.5,3345.0,0.8032]
[1732488324025,2.9891,3345.5,3345.1,0.03327944]
[1732488324223,1.38549579,3346.1,3345.1,0.03327944]
[1732488324224,2.98889,3345.8,3345.1,0.03327944]
[1732488324427,3.0,3345.4,3345.0,0.8032]
[1732488324633,5.98918,3345.4,3345.0,0.8032]
[1732488325416,3.76683,3345.5,3345.0,0.8032]
[1732488325617,3.88958897,3345.3,3345.0,0.8032]
[1732488325817,0.90031897,3345.3,3345.0,0.8032]
[1732488326117,6.88958897,3345.3,3345.0,0.8032]
[1732488326741,5.98927,3345.3,3345.0,0.8032]
[1732488334946,2.98927,3345.3,3345.0,0.8032]
[1732488335685,3.90031897,3345.4,3345.0,0.8032]
[1732488336787,6.88952897,3345.4,3345.0,0.8032]
[1732488338289,2.98927,3345.3,3345.0,0.8032]
[1732488342597,6.88949897,3345.4,3345.0,0.8032]
[1732488343457,2.98927,3345.3,3345.0,0.8032]
[1732488345313,2.98927,3345.3,3344.7,0.89693]
[1732488345591,2.98927,3345.3,3344.8,0.02750832]
[1732488345949,2.98927,3345.3,3344.7,0.89693]
[1732488349297,2.98927,3345.3,3344.8,0.7847]
[1732488350397,0.2792873,3345.2,3344.8,0.7847]
[1732488350609,2.98927,3345.3,3344.8,0.7847]
[1732488350808,0.27928736,3345.2,3344.8,0.7847]
[1732488351111,2.98927,3345.3,3344.8,0.7847]
[1732488351294,0.27928728,3345.2,3344.8,0.7847]
[1732488351604,0.27928728,3345.1,3344.8,0.7847]
[1732488351902,2.98927,3345.3,3344.8,0.7847]
[1732488352075,0.27941271,3345.2,3344.8,0.7847]
[1732488352277,0.27941271,3345.1,3344.8,0.7847]
[1732488352478,2.98927,3345.3,3344.8,0.7847]
[1732488352708,0.72725331,3345.2,3344.8,0.7847]
[1732488352892,0.27971281,3345.1,3344.8,0.7847]
[1732488353067,0.27971281,3345.0,3344.8,0.7847]
[1732488353268,2.98927,3345.3,3344.8,0.7847]
[1732488353481,0.72725901,3345.2,3344.8,0.7847]
[1732488353679,0.279715,3345.1,3344.8,0.7847]
[1732488353892,0.279715,3345.0,3344.8,0.7847]
[1732488354097,2.98927,3345.3,3344.8,0.7847]
[1732488354306,0.72725853,3345.2,3344.8,0.7847]
[1732488354488,0.27971482,3345.1,3344.8,0.7847]
[1732488354671,0.27971482,3345.0,3344.8,0.7847]
[1732488354871,0.27971482,3344.9,3344.8,0.7847]
[1732488355272,0.27971482,3344.9,3344.8,1.849774]
[1732488355874,0.27974202,3344.9,3344.8,1.849774]
[1732488356719,0.27974202,3344.9,3344.8,1.881674]
[1732488359315,3.0,3345.4,3344.9,0.89688]
[1732488359519,0.72733663,3345.3,3344.9,0.89688]
[1732488359810,0.72733663,3345.2,3344.9,0.89688]
[1732488359990,0.27974518,3345.1,3344.9,0.89688]
[1732488360193,0.27974518,3345.0,3344.9,0.89688]
[1732488362110,0.27974526,3345.0,3344.9,0.89688]
[1732488362483,0.27974366,3345.0,3344.9,0.89688]
[1732488362883,0.27974366,3345.0,3344.9,1.157919]
[1732488363093,3.0,3345.6,3345.2,0.8968]
[1732488363314,0.72717979,3345.5,3345.2,0.8968]
[1732488363516,0.72717979,3345.4,3345.2,0.8968]
[1732488363821,0.27968453,3345.3,3345.2,0.8968]
[1732488364627,0.27968453,3345.3,3345.2,1.6574]
[1732488365683,0.7669,3346.8,3346.3,0.89649]
[1732488366020,2.98772,3347.1,3346.3,0.89649]
[1732488366021,0.72663672,3346.7,3346.6,0.89643]
[1732488366187,0.27947566,3346.7,3346.6,0.89643]
[1732488366383,0.44716106,3347.2,3346.6,0.89643]
[1732488366583,0.27888256,3347.1,3346.4,1.67157]
[1732488366806,0.27888256,3347.0,3346.4,1.67157]
[1732488366983,0.27888256,3346.9,3346.4,1.67157]
[1732488367185,0.27859989,3347.0,3346.4,1.67157]
[1732488367423,3.0,3347.1,3346.4,1.67157]
[1732488367684,0.27858712,3347.0,3346.4,1.67157]
[1732488367887,0.27858712,3347.0,3346.6,0.89642]
[1732488368096,4.75,3347.3,3346.4,1.67157]
[1732488368310,4.75,3347.3,3346.6,0.8964]
[1732488368517,0.27832666,3347.2,3346.6,0.8964]
[1732488369399,4.75,3347.3,3346.6,0.8964]
[1732488370741,1.75,3347.3,3346.6,0.8964]
[1732488370949,3.0,3347.2,3346.6,0.8964]
[1732488371246,1.75,3347.3,3346.7,0.89639]
[1732488372143,1.75,3347.3,3346.8,0.809]
[1732488372341,1.75,3347.3,3346.8,1.70535]
[1732488373743,1.75,3347.3,3346.9,0.89635]
[1732488377340,1.75,3347.3,3346.8,0.809]
[1732488377510,0.8208,3347.2,3346.3,1.7175]
[1732488377704,0.90031897,3347.0,3346.1,0.821]
[1732488377919,2.9881,3346.6,3345.8,0.821]
[1732488379038,2.96519554,3346.4,3345.8,0.821]
[1732488379446,2.95967977,3346.4,3345.8,0.821]
[1732488380054,2.98827,3346.5,3345.8,0.821]
[1732488380646,2.9883,3346.4,3345.8,0.821]
[1732488382226,2.98827,3346.5,3345.8,0.821]
[1732488382227,2.98839,3346.3,3345.8,0.821]
[1732488382951,2.98847,3346.2,3345.8,0.821]
[1732488388363,2.98873,3345.9,3345.8,0.821]
[1732488388755,2.98897,3345.7,3345.3,0.7667]
[1732488388976,2.98917,3345.4,3344.6,0.7667]
[1732488389187,2.98965,3344.9,3344.6,0.7667]
[1732488389488,2.98972,3344.8,3344.6,0.7667]
[1732488389689,2.98981,3344.7,3344.3,0.8221]
[1732488389867,2.98981,3344.7,3344.3,1.001519]
[1732488390066,2.98981,3344.7,3344.3,0.8221]
[1732488390898,2.98997,3344.6,3344.3,0.8221]
[1732488391192,2.9901,3344.4,3344.0,0.7699]
[1732488391352,2.9901,3344.4,3344.0,0.92032606]
[1732488391840,2.99009,3344.4,3344.0,0.92032606]
[1732488392107,2.99021,3344.3,3344.0,0.92032606]
[1732488392306,2.99021,3344.3,3344.0,0.7699]
[1732488393109,2.99026,3344.2,3344.0,0.7699]
[1732488393311,2.99026,3344.2,3343.9,0.00546616]
[1732488393476,0.7577,3344.4,3343.9,0.00546616]
[1732488393477,2.99036,3344.1,3343.9,0.00546616]
[1732488394186,2.99043,3344.0,3343.9,0.00546616]
[1732488395777,6.78833,3344.0,3343.9,0.00546616]
[1732488404238,5.99043,3344.0,3343.9,0.00546616]
[1732488405343,2.99043,3344.0,3343.9,0.00546616]
[1732488405543,2.99036,3344.1,3343.9,0.00546616]
[1732488409059,2.99036,3344.1,3343.6,0.8298]
[1732488409255,2.99018,3344.3,3343.6,1.72703]
[1732488409433,2.99018,3344.3,3343.6,1.989464]
[1732488409769,2.99018,3344.3,3343.6,1.092234]
[1732488409969,2.99034,3344.1,3343.6,0.8298]
[1732488410181,2.99018,3344.3,3343.6,0.8298]
[1732488410667,2.99026,3344.2,3343.6,0.8298]
[1732488411370,2.99034,3344.1,3343.6,0.8298]
[1732488411536,2.99034,3344.1,3343.5,0.89726]
[1732488411537,0.7683,3344.0,3343.5,0.89726]
[1732488411746,2.99034,3344.1,3343.6,0.768]
[1732488412244,2.99018,3344.3,3343.6,0.768]
[1732488412245,5.9804,3344.3,3343.6,0.768]
[1732488412460,2.99018,3344.3,3343.6,1.66523]
[1732488412958,2.99038,3344.1,3343.6,0.768]
[1732488414690,2.99043,3344.0,3343.6,0.768]
[1732488414981,2.99053,3343.9,3343.6,0.768]
[1732488415184,2.99053,3343.9,3343.2,0.8196]
[1732488415185,2.99076,3343.7,3343.2,0.8196]
[1732488416582,2.99076,3343.7,3342.5,2.50672575]
[1732488416583,2.99103,3343.4,3342.7,0.7687]
[1732488416772,2.99123,3343.1,3342.7,0.7687]
[1732488420506,3.75886,3343.3,3342.7,0.7687]
[1732488421985,2.99114,3343.2,3342.7,0.7687]
[1732488422686,2.99114,3343.2,3342.5,0.89752]
[1732488423954,2.99114,3343.2,3342.9,0.00546616]
[1732488425692,2.99123,3343.1,3342.9,0.00546616]
[1732488426404,2.99123,3343.1,3343.0,0.02616164]
[1732488426560,2.99123,3343.1,3342.9,0.00546616]
[1732488426758,2.99123,3343.1,3343.0,0.02616164]
[1732488428700,3.57824623,3343.1,3343.0,0.02616164]
[1732488429060,2.99132,3343.0,3342.9,0.00546616]
[1732488429438,3.57824623,3343.1,3342.9,0.00546616]